bitfinex/quotes_ETHUSD_20260120
["timestamp","ask_amount","ask_price","bid_price","bid_amount"]
[1768873284934,0.9587658,3191.7,3191.3,0.94896981]
[1768873285300,0.9587658,3191.7,3191.2,0.94896981]
[1768873286420,0.9587658,3191.7,3191.0,0.00080296]
[1768873286793,0.95796236,3191.5,3191.0,0.00080296]
[1768873287135,0.95796236,3191.5,3191.0,0.94977277]
[1768873287330,0.00080344,3191.7,3191.2,0.94896981]
[1768873287537,0.0008024,3192.0,3191.5,0.94896981]
[1768873288421,0.95876476,3192.0,3191.3,0.00080352]
[1768873288732,0.95796236,3191.8,3191.3,0.00080352]
[1768873290200,0.95796236,3191.7,3191.3,0.00080352]
[1768873294938,0.002,3191.4,3191.3,0.00080352]
[1768873296935,0.95996236,3191.4,3191.3,0.00080352]
[1768873297440,0.002,3191.4,3191.3,0.00080352]
[1768873300538,0.002,3191.4,3191.3,0.94977333]
[1768873300722,0.002,3191.4,3191.3,0.00080352]
[1768873303419,0.96672252,3191.4,3190.8,0.001]
[1768873303645,0.96472252,3191.2,3190.5,0.91801872]
[1768873305146,0.96472252,3191.2,3190.5,4.05230173]
[1768873305370,0.96472252,3191.1,3190.3,4.05346741]
[1768873305641,0.96472252,3191.0,3190.3,4.05346741]
[1768873305840,0.96472252,3191.0,3190.4,0.91801872]
[1768873306141,0.96472252,3191.0,3190.6,0.91801872]
[1768873306332,0.96472252,3191.0,3190.4,0.91801872]
[1768873306846,0.96472252,3191.0,3190.5,0.91801872]
[1768873307017,0.96472252,3191.0,3190.6,0.001]
[1768873310062,0.96472252,3191.3,3190.6,0.91901872]
[1768873310262,0.96472252,3191.2,3190.6,0.91901872]
[1768873311562,0.96472252,3191.2,3190.3,0.001]
[1768873311858,0.96472252,3191.0,3190.3,0.001]
[1768873313568,0.93699385,3190.9,3190.3,0.001]
[1768873313783,0.93699385,3190.8,3190.3,0.001]
[1768873315265,0.40707514,3190.9,3190.3,0.95379849]
[1768873315434,1.44999385,3191.0,3190.3,0.95379849]
[1768873316464,0.513,3191.0,3190.3,3.13543012]
[1768873316625,0.513,3191.0,3190.4,0.95279849]
[1768873316830,1.44999385,3191.0,3190.4,0.95279849]
[1768873318670,0.513,3191.0,3190.6,0.95379849]
[1768873319026,0.002,3190.7,3190.6,0.95379849]
[1768873320661,0.002,3190.7,3190.6,0.001]
[1768873321680,0.93899385,3190.7,3190.6,0.001]
[1768873321878,0.93899385,3190.7,3190.3,0.514]
[1768873321879,0.93899385,3190.7,3190.3,0.001]
[1768873322170,0.93899385,3190.7,3190.3,0.514]
[1768873322972,0.93899385,3191.0,3190.4,0.95279849]
[1768873324946,0.93899385,3191.0,3190.4,4.08719548]
[1768873325271,0.93899385,3191.0,3190.4,1.72637748]
[1768873325476,0.93899385,3191.0,3190.4,4.86077438]
[1768873325850,0.93899385,3191.0,3190.5,0.95279849]
[1768873326782,0.002,3191.0,3190.5,0.95279849]
[1768873327077,0.002,3191.0,3190.6,0.95279849]
[1768873327680,0.002,3191.0,3190.7,0.95279849]
[1768873328379,0.51580296,3191.4,3190.8,0.95279849]
[1768873328884,0.51580296,3191.4,3190.8,3.13397848]
[1768873329056,0.51580296,3191.4,3190.9,0.95279849]
[1768873329452,1.45279681,3191.4,3190.9,0.95279849]
[1768873329878,0.93699385,3191.3,3190.6,1.19355485]
[1768873330083,0.93699385,3191.1,3190.5,0.513]
[1768873331275,0.93699385,3191.1,3190.4,4.08717319]
[1768873331483,0.93699385,3191.1,3190.4,0.513]
[1768873331687,0.002,3190.7,3190.4,0.513]
[1768873331989,0.002,3190.7,3190.4,4.60019829]
[1768873332170,0.002,3190.7,3190.5,0.77356942]
[1768873334374,0.002,3190.7,3190.5,1.72636791]
[1768873334794,0.002,3191.0,3190.6,0.95279849]
[1768873336892,0.93899385,3191.0,3190.5,0.77356942]
[1768873337076,0.93899385,3191.0,3190.5,0.513]
[1768873338172,0.93899385,3191.0,3190.3,0.001]
[1768873338596,0.93899385,3191.0,3190.3,0.95379849]
[1768873340290,0.93899385,3191.0,3190.4,0.95279849]
[1768873340480,0.93899385,3191.0,3190.5,1.36161903]
[1768873341307,0.002,3191.0,3190.6,0.95279849]
[1768873341600,0.93899385,3191.0,3190.4,0.513]
[1768873342598,0.93699385,3190.9,3190.4,0.513]
[1768873342912,0.93699385,3190.9,3190.3,0.001]
[1768873343402,0.93699385,3190.9,3190.6,0.001]
[1768873343599,0.93195507,3190.8,3190.6,0.001]
[1768873343797,0.93395507,3190.7,3190.6,0.001]
[1768873344978,0.93395507,3190.7,3190.3,0.001]
[1768873348412,0.93395507,3190.7,3190.0,0.001]
[1768873349116,0.93195507,3190.6,3190.0,0.001]
[1768873349418,0.93195507,3190.5,3190.0,0.001]
[1768873350714,0.93195507,3190.4,3190.0,0.001]
[1768873352025,0.93195507,3190.4,3189.5,0.001]
[1768873352323,0.93195507,3190.4,3189.5,0.97144666]
[1768873352522,0.93195507,3190.2,3189.5,0.97144666]
[1768873353019,0.93195507,3190.0,3189.5,0.001]
[1768873354395,0.93195507,3190.0,3189.2,0.0008012]
[1768873354724,0.93195507,3189.8,3188.9,0.00180128]
[1768873355023,0.93195507,3189.4,3188.9,0.00180128]
[1768873357594,0.93195507,3189.4,3188.9,0.97224794]
[1768873358112,0.93195507,3189.5,3188.9,0.97224794]
[1768873358417,0.0008012,3189.6,3188.9,0.97224794]
[1768873358787,0.93275627,3189.6,3188.9,0.97224794]
[1768873361122,0.93275627,3189.6,3188.9,4.10812065]
[1768873361331,0.93275627,3189.6,3189.0,0.97044666]
[1768873362696,0.0008012,3189.6,3189.1,0.98095425]
[1768873362927,0.0008012,3189.6,3189.2,0.98095425]
[1768873364704,0.97582845,3189.6,3189.2,0.98095425]
[1768873366998,0.97582845,3189.6,3189.2,0.98195425]
[1768873367202,0.97582845,3189.6,3189.2,0.001]
[1768873367533,0.002,3189.3,3189.2,0.001]
[1768873370440,0.97502725,3189.2,3188.9,0.00180128]
[1768873371331,0.97502725,3189.2,3188.6,0.0008016]
[1768873371532,0.97502725,3188.8,3188.3,0.00080184]
[1768873373325,0.93407126,3188.7,3188.3,0.00080184]
[1768873380007,0.93407126,3188.7,3188.6,0.002]
[1768873380207,0.93407126,3188.7,3188.6,1e-08]
[1768873380539,1.34106615,3188.7,3188.6,1e-08]
[1768873380940,0.85586425,3188.7,3188.6,1e-08]
[1768873381106,0.0008016,3189.0,3188.6,0.90769418]
[1768873381309,0.0008016,3189.0,3188.6,1e-08]
[1768873381310,0.93407126,3188.9,3188.6,1e-08]
[1768873383464,0.0008016,3189.0,3188.6,1e-08]
[1768873385832,0.93487286,3189.0,3188.6,1e-08]
[1768873388138,0.0008016,3189.0,3188.6,1e-08]
[1768873388339,0.0008016,3189.0,3188.7,0.90769417]
[1768873389270,0.0008016,3189.0,3188.6,0.45570222]
[1768873389432,0.0008016,3189.0,3188.6,1e-08]
[1768873389833,0.0008016,3189.0,3188.6,0.51300001]
[1768873390033,0.0008016,3189.0,3188.6,0.90769418]
[1768873390237,0.0008016,3189.0,3188.6,1.42069418]
[1768873390967,0.0008016,3189.0,3188.7,0.90769417]
[1768873391272,0.0008016,3189.0,3188.8,0.90769417]
[1768873392036,0.00280128,3189.3,3188.8,0.90769417]
[1768873393357,0.00280128,3189.3,3188.9,0.513]
[1768873393544,0.00280128,3189.3,3188.9,1.42069417]
[1768873393931,0.00280128,3189.3,3188.8,0.90769417]
[1768873394129,0.93687254,3189.3,3188.8,1.42069417]
[1768873395135,0.00280128,3189.3,3188.9,0.90769417]
[1768873395966,0.93687254,3189.3,3188.9,0.90769417]
[1768873397131,0.93687254,3189.3,3188.7,0.90769417]
[1768873397333,0.93687254,3189.3,3188.6,0.00080169]
[1768873397334,0.93407126,3189.2,3188.6,0.00080169]
[1768873397537,0.93407126,3189.1,3188.7,0.513]
[1768873398464,0.93407126,3189.1,3188.6,0.00080169]
[1768873400141,0.93407126,3189.0,3188.6,1e-08]
[1768873400881,0.93687254,3189.3,3188.6,0.90769418]
[1768873401373,0.93407126,3189.2,3188.6,0.90769418]
[1768873403643,0.001,3188.8,3188.6,0.90769418]
[1768873406765,0.00280128,3189.3,3188.7,0.90127341]
[1768873407395,0.94170267,3189.3,3188.7,0.90127341]
[1768873407690,0.00280128,3189.3,3188.7,0.90127341]
[1768873407870,0.00280128,3189.3,3188.9,0.90127341]
[1768873408858,0.00280128,3189.3,3188.9,3.135869]
[1768873409095,0.00280128,3189.3,3189.0,0.90127341]
[1768873411291,0.00280128,3189.3,3188.9,3.135869]
[1768873411292,0.94170267,3189.3,3188.9,0.513]
[1768873412894,0.00280128,3189.3,3189.0,0.90127341]
[1768873414489,0.00280128,3189.3,3189.0,4.03703512]
[1768873415528,0.00280128,3189.3,3189.1,0.90127341]
[1768873417375,0.0028012,3189.6,3189.3,0.90127341]
[1768873417572,0.93890139,3190.1,3189.4,0.90127341]
[1768873418981,0.93890139,3190.1,3189.5,0.513]
[1768873419164,0.93890139,3190.1,3189.4,0.90127341]
[1768873419362,0.93890139,3190.1,3189.5,1.41427341]
[1768873419916,0.93890139,3190.1,3189.6,0.90127341]
[1768873420064,6.34,3190.6,3189.6,0.90127341]
[1768873420065,0.93890139,3190.6,3189.7,0.90127341]
[1768873420260,0.93890139,3190.6,3190.1,0.90127341]
[1768873420667,0.93890139,3190.6,3189.7,0.90127341]
[1768873420894,0.93890139,3190.6,3189.8,0.513]
[1768873421097,0.93890139,3190.4,3189.7,0.90127341]
[1768873421301,0.93890139,3189.9,3189.2,0.00080128]
[1768873425222,0.93890139,3189.9,3189.2,0.94688966]
[1768873427018,0.93890139,3189.9,3189.2,4.08244759]
[1768873427223,0.93890139,3189.9,3189.5,0.001]
[1768873427420,0.94208412,3189.8,3189.5,0.001]
[1768873430621,0.002,3189.8,3189.5,0.001]
[1768873430928,0.94208412,3189.8,3189.5,0.001]
[1768873438714,0.002,3189.8,3189.5,0.95688229]
[1768873439327,0.002,3190.1,3189.6,0.95588229]
[1768873439926,1.46844028,3190.4,3189.8,0.95588229]
[1768873440320,0.95444028,3190.4,3189.8,0.95588229]
[1768873440575,0.95444028,3190.6,3189.8,0.95588229]
[1768873441907,0.95444028,3190.6,3190.0,0.95588229]
[1768873442105,1.73548431,3190.6,3190.0,0.95588229]
[1768873442528,0.95444028,3190.5,3190.0,0.95588229]
[1768873444817,0.78104403,3190.6,3190.0,0.95588229]
[1768873445042,0.78104403,3190.6,3189.6,8.31301589]
[1768873445043,1.73548431,3190.6,3190.1,0.95588229]
[1768873445420,0.95444028,3190.5,3190.1,0.95588229]
[1768873445621,0.95444028,3190.5,3189.8,0.95588229]
[1768873445948,0.95724324,3191.4,3190.5,0.30672936]
[1768873446143,0.95724324,3191.4,3190.1,0.30672936]
[1768873446144,0.95444028,3191.3,3190.1,0.30672936]
[1768873446441,0.95444028,3191.3,3190.2,0.30672936]
[1768873447009,0.95444028,3191.3,3190.4,0.30672936]
[1768873448145,0.95444028,3191.3,3190.6,0.30672936]
[1768873449454,0.95444028,3191.3,3190.7,0.30672936]
[1768873451342,0.95444028,3191.3,3190.7,3.44082695]
[1768873451523,0.002,3191.0,3190.7,3.44082695]
[1768873456328,0.002,3191.0,3190.8,0.30672936]
[1768873458057,0.002,3191.0,3190.8,3.44073662]
[1768873458217,0.002,3191.0,3190.8,0.30672936]
[1768873459046,0.002,3191.0,3190.7,0.65750331]
[1768873459251,0.002,3191.0,3190.6,0.30672936]
[1768873459664,0.95644028,3191.0,3190.3,3.13540773]
[1768873461366,0.95444028,3190.9,3190.3,0.001]
[1768873461545,3.13584994,3191.0,3190.3,0.001]
[1768873461546,0.95444028,3190.7,3190.3,0.001]
[1768873464378,0.95444028,3190.7,3189.6,3.85791974]
[1768873464379,0.9257319,3190.5,3189.0,0.40561157]
[1768873464576,0.9257319,3190.2,3189.1,0.23052235]
[1768873464885,0.9257319,3190.0,3189.0,3.13575954]
[1768873465665,0.9257319,3190.0,3189.0,3.36628189]
[1768873466673,0.9257319,3189.9,3189.0,3.36628189]
[1768873470369,0.9257319,3189.9,3189.0,3.13575954]
[1768873470593,0.9257319,3189.9,3189.0,3.36628189]
[1768873470781,0.9257319,3189.8,3188.9,0.00080136]
[1768873470988,0.9257319,3189.6,3188.9,0.00080136]
[1768873471140,0.9257319,3189.4,3188.9,0.00080136]
[1768873472840,0.9257319,3189.4,3188.9,0.23212499]
[1768873474287,0.9257319,3189.4,3189.0,3.13577924]
[1768873474992,0.92653318,3189.6,3189.1,0.23132363]
[1768873475159,0.514,3189.4,3189.2,0.88161184]
[1768873475991,0.514,3189.4,3189.3,0.001]
[1768873479450,1.4397319,3189.4,3189.3,0.001]
[1768873483996,0.514,3189.4,3189.3,0.001]
[1768873488976,0.00080128,3189.6,3189.3,0.23232363]
[1768873489172,0.97297787,3190.0,3189.4,0.23052235]
[1768873489499,1.48697787,3190.0,3189.4,0.23052235]
[1768873490770,0.514,3190.1,3189.4,0.23052235]
[1768873490971,1.48697787,3190.1,3189.4,0.23052235]
[1768873491170,1.48697787,3190.1,3189.5,3.36581001]
[1768873491404,1.48697787,3190.1,3189.6,0.65011522]
[1768873491975,0.514,3190.1,3189.7,0.23052235]
[1768873493509,0.514,3190.1,3189.8,0.23052235]
[1768873494701,0.92960884,3190.7,3189.9,0.23052235]
[1768873494882,0.92960884,3190.6,3190.0,0.23052235]
[1768873495712,0.92960884,3190.6,3190.1,0.23052235]
[1768873497588,0.514,3190.7,3190.1,0.23052235]
[1768873498397,1.44360884,3190.7,3190.2,0.23052235]
[1768873499014,0.002,3190.3,3189.9,3.78488711]
[1768873499223,0.002,3190.3,3190.0,4.05727086]
[1768873500431,0.002,3190.6,3190.2,0.22852235]
[1768873501641,0.92960884,3190.5,3190.0,0.69198581]
[1768873501811,0.92960884,3190.4,3189.7,3.64802991]
[1768873502015,0.92960884,3190.4,3189.7,3.13502991]
[1768873502399,0.92960884,3190.2,3189.5,3.13524772]
[1768873503325,0.92960884,3190.2,3189.6,0.64991466]
[1768873504121,0.92960884,3190.2,3189.6,0.87843701]
[1768873504805,0.92960884,3190.2,3189.6,4.01353552]
[1768873505711,0.92960884,3190.2,3189.7,0.22852235]
[1768873505912,0.92960884,3190.3,3189.7,0.22852235]
[1768873507340,0.92960884,3190.3,3189.7,3.36359852]
[1768873507505,0.92960884,3190.3,3189.7,4.07847739]
[1768873509541,0.92960884,3190.3,3189.8,0.22852235]
[1768873511538,0.92960884,3190.3,3189.9,0.001]
[1768873517459,0.92960884,3190.4,3189.9,0.22952235]
[1768873518329,0.514,3190.5,3189.9,0.22952235]
[1768873519038,0.514,3190.5,3190.0,3.36331858]
[1768873519244,0.514,3190.5,3190.1,0.22852235]
[1768873519422,0.93160884,3190.6,3190.1,0.56495421]
[1768873519618,0.93160884,3190.6,3190.2,0.22852235]
[1768873521139,0.93160884,3190.6,3190.1,0.33643186]
[1768873521333,0.93160884,3190.6,3190.0,0.22852235]
[1768873522649,0.93160884,3190.6,3190.1,3.13469442]
[1768873522855,0.93160884,3190.6,3190.2,0.22852235]
[1768873523265,0.93160884,3190.6,3190.1,3.13469442]
[1768873523424,0.93160884,3190.6,3189.9,3.13588266]
[1768873523425,0.93160884,3190.6,3190.0,0.22852235]
[1768873523625,0.002,3190.3,3190.0,0.22852235]
[1768873524855,0.002,3190.6,3190.1,0.22852235]
[1768873525059,0.002,3190.6,3190.2,0.22852235]
[1768873525357,0.516,3191.0,3190.5,0.22652235]
[1768873525358,0.002,3191.0,3190.5,0.22652235]
[1768873527163,0.002,3191.0,3190.7,0.22652235]
[1768873528427,0.002,3191.0,3190.6,3.13420673]
[1768873528852,0.002,3191.0,3190.6,3.36072908]
[1768873529053,0.002,3191.0,3190.7,0.33607291]
[1768873530765,0.002,3191.0,3190.1,0.7309985]
[1768873530766,0.96452165,3191.0,3190.1,0.7309985]
[1768873530965,0.96452165,3191.0,3190.2,3.6475652]
[1768873531349,0.96252165,3190.4,3189.9,0.001]
[1768873531544,0.96252165,3190.4,3189.6,3.13512199]
[1768873531744,0.96252165,3190.4,3189.7,0.62703938]
[1768873533077,0.96252165,3190.4,3189.7,3.7621161]
[1768873534069,0.96252165,3190.4,3189.7,3.98863845]
[1768873540600,0.96252165,3190.4,3189.7,7.12372952]
[1768873540803,0.96252165,3190.4,3189.8,0.22652235]
[1768873541005,0.96252165,3190.4,3189.9,0.9388953]
[1768873542407,0.96252165,3190.4,3189.8,3.13492633]
[1768873543297,0.96252165,3190.4,3189.5,0.22652235]
[1768873544105,0.96252165,3190.4,3189.7,0.22652235]
[1768873546213,0.96252165,3190.4,3189.5,6.49707288]
[1768873546682,0.96252165,3190.4,3189.6,0.22652235]
[1768873547016,0.96252165,3190.4,3189.7,0.64970729]
[1768873547213,0.002,3190.1,3189.7,0.64970729]
[1768873547402,0.94458063,3190.1,3189.7,0.64970729]
[1768873547921,0.94458063,3190.1,3189.3,0.22752235]
[1768873548086,0.94458063,3190.1,3189.4,3.13533224]
[1768873549097,1.45858063,3190.1,3189.4,3.13533224]
[1768873549317,0.94258063,3190.0,3189.4,3.13533224]
[1768873551084,0.94258063,3190.0,3189.3,3.36300662]
[1768873551286,0.94258063,3190.0,3189.3,4.01295261]
[1768873552118,0.94258063,3190.0,3189.3,0.65094599]
[1768873554812,0.94258063,3190.0,3189.3,3.78640352]
[1768873555197,0.94258063,3190.0,3189.3,0.65094599]
[1768873555408,0.94258063,3190.0,3189.3,0.001]
[1768873559127,0.94258063,3190.0,3189.6,0.001]
[1768873560122,0.93744422,3190.1,3189.7,0.63155059]
[1768873560329,0.93744422,3190.1,3189.6,0.001]
[1768873560793,0.93744422,3190.1,3189.6,0.22752235]
[1768873561511,0.93744422,3190.1,3189.6,0.001]
[1768873562828,0.002,3190.4,3189.8,0.91824741]
[1768873563034,0.93744422,3190.7,3190.1,0.91824741]
[1768873563694,0.93744422,3190.7,3190.2,3.13459971]
[1768873563920,0.93744422,3190.7,3190.1,0.91824741]
[1768873563921,0.93744422,3190.7,3190.1,4.05291635]
[1768873566332,0.93744422,3190.7,3190.2,0.91824741]
[1768873568944,0.93744422,3190.7,3190.2,4.05283829]
[1768873569560,0.93744422,3190.7,3190.2,0.91824741]
[1768873569852,0.93744422,3190.7,3190.2,4.05282057]
[1768873571046,0.002,3191.3,3190.7,0.91824741]
[1768873571224,0.002,3191.3,3190.7,0.94438077]
[1768873571738,0.93744422,3191.3,3190.7,0.94438077]
[1768873572938,0.93744422,3191.3,3190.8,4.05225768]
[1768873573835,0.93744422,3191.3,3190.8,3.13401027]
[1768873573836,0.002,3191.3,3190.8,3.13401027]
[1768873574038,0.93744422,3191.3,3190.9,0.91824741]
[1768873574339,0.002,3191.3,3190.9,0.91824741]
[1768873575309,0.002,3191.3,3190.9,4.05212166]
[1768873575615,0.002,3191.9,3191.3,0.91824741]
[1768873575814,0.002,3191.9,3191.5,0.91824741]
[1768873578840,0.002,3191.9,3191.5,4.05152841]
[1768873581511,0.002,3191.9,3191.6,0.91824741]
[1768873582815,1e-08,3192.0,3191.7,4.05137395]
[1768873583019,0.93824614,3192.3,3191.8,0.97769416]
[1768873583020,0.513,3192.2,3191.8,0.97769416]
[1768873583220,0.513,3192.2,3192.0,0.97769416]
[1768873584344,0.00280192,3192.3,3192.0,0.97769416]
[1768873584525,0.51580184,3192.6,3192.1,0.97769416]
[1768873585864,0.9323651,3192.5,3191.9,3.13369315]
[1768873586327,0.51580184,3192.6,3192.1,0.97769416]
[1768873586526,1.44816694,3192.6,3192.1,0.97769416]
[1768873586941,0.51580184,3192.6,3192.1,0.97769416]
[1768873587145,1.44816694,3192.6,3192.1,0.97769416]
[1768873587324,0.9323651,3192.5,3192.0,3.13280664]
[1768873587521,0.9323651,3192.5,3192.0,0.97769416]
[1768873587936,0.9323651,3192.5,3191.9,1.60517709]
[1768873588138,0.9323651,3192.5,3191.9,0.97849616]
[1768873588548,0.9323651,3192.5,3191.9,4.11137182]
[1768873590022,0.9323651,3192.5,3192.0,0.97769416]
[1768873594348,0.51580184,3192.6,3192.1,0.97769416]
[1768873595461,0.002,3192.2,3192.1,0.97769416]
[1768873595656,0.51580184,3192.6,3192.1,1.70211693]
[1768873595868,0.002,3192.5,3192.1,1.70211693]
[1768873596942,0.002,3192.5,3192.2,4.11032995]
[1768873597265,0.002,3192.5,3192.2,0.97769416]
[1768873598262,1.44816694,3192.6,3192.2,0.97769416]
[1768873598459,0.00280184,3192.6,3192.3,0.97769416]
[1768873599030,0.0028024,3193.3,3192.6,0.97849648]
[1768873599227,0.513,3193.5,3192.9,0.97849664]
[1768873599631,0.51580288,3193.6,3193.0,0.97769416]
[1768873599855,0.51580288,3193.6,3193.2,0.97769416]
[1768873600057,0.00280288,3193.6,3193.4,0.97769416]
[1768873601359,0.93516798,3193.6,3193.3,0.80537997]
[1768873601559,0.93516798,3193.6,3193.1,0.97769416]
[1768873603061,0.00280288,3194.2,3193.5,0.99890647]
[1768873603358,0.97421583,3194.2,3193.5,0.99970935]
[1768873605249,0.00280288,3194.2,3193.7,0.99890647]
[1768873607267,0.97421583,3194.2,3193.7,0.99890647]
[1768873607462,0.97221583,3194.2,3193.7,0.99890647]
[1768873607668,0.97221583,3194.2,3193.8,0.00080296]
[1768873609370,0.97221583,3194.2,3193.8,0.99970943]
[1768873610579,0.00080288,3194.2,3193.8,0.99970943]
[1768873611384,0.97221583,3194.2,3193.5,0.00080288]
[1768873611575,0.97301879,3194.2,3193.5,0.00080288]
[1768873613252,0.97301879,3194.2,3193.6,0.40671309]
[1768873616470,0.97301879,3194.2,3193.5,0.00080288]
[1768873617057,0.94960186,3194.1,3193.5,0.00080288]
[1768873617257,0.00080288,3193.9,3193.2,0.00080296]
[1768873617461,0.94960186,3193.7,3193.2,0.00080296]
[1768873619879,0.94960186,3193.7,3193.2,0.93568434]
[1768873620187,1.46260186,3193.8,3193.3,1.34162463]
[1768873620964,0.00280288,3193.9,3193.4,0.93488138]
[1768873621169,0.513,3193.8,3193.4,0.93488138]
[1768873622188,0.94960186,3193.7,3193.4,3.13145863]
[1768873622489,0.94960186,3193.7,3193.3,0.40674325]
[1768873622691,0.94960186,3193.7,3193.3,1.34162463]
[1768873623398,0.94960186,3193.7,3193.3,7.60469138]
[1768873623691,0.00160584,3194.2,3193.6,0.93488138]
[1768873623885,0.95240458,3194.5,3193.9,0.93488138]
[1768873624193,1.46260186,3194.4,3193.9,0.93488138]
[1768873625363,0.94960186,3194.3,3193.8,0.00080304]
[1768873625902,0.94960186,3194.2,3193.8,0.00080304]
[1768873626080,0.9504049,3194.2,3193.5,0.00080296]
[1768873626589,0.94960186,3194.1,3193.5,0.00080296]
[1768873627894,0.94960186,3194.1,3193.2,0.00080296]
[1768873628191,0.94960186,3193.8,3193.2,0.00080296]
[1768873628375,0.00080296,3193.9,3193.2,0.00080296]
[1768873628376,0.94960186,3193.6,3193.2,0.00080296]
[1768873631979,0.94960186,3193.5,3193.2,0.00080296]
[1768873632669,0.94960186,3193.5,3192.9,0.00080248]
[1768873635501,0.94960186,3193.5,3193.0,0.93488138]
[1768873637176,0.94960186,3193.5,3193.0,4.06672007]
[1768873637376,0.94960186,3193.5,3193.1,0.93488138]
[1768873637904,0.513,3193.4,3193.1,0.93488138]
[1768873638409,0.513,3193.5,3193.1,0.93488138]
[1768873638585,0.00080296,3193.6,3193.1,0.93488138]
[1768873638785,0.51380296,3193.6,3193.2,0.93488138]
[1768873642806,0.00080296,3193.9,3193.4,0.93488138]
[1768873643104,0.513,3193.8,3193.4,0.93488138]
[1768873643604,0.513,3193.8,3193.4,4.06631002]
[1768873643980,0.513,3193.8,3193.4,0.93488138]
[1768873645507,0.513,3193.8,3193.5,0.001]
[1768873646006,1.42584772,3193.8,3193.5,0.001]
[1768873647915,0.91284772,3193.7,3193.5,0.001]
[1768873667598,0.95583045,3193.6,3193.2,0.00080304]
[1768873668325,0.95663349,3193.6,3192.9,0.00080248]
[1768873673632,0.95663349,3193.6,3192.9,0.91687009]
[1768873673838,0.95663349,3193.6,3193.0,0.91606761]
[1768873675306,0.95663349,3193.6,3192.9,0.71890761]
[1768873675518,0.95663349,3193.6,3192.9,3.85084129]
[1768873676638,0.95663349,3193.6,3192.9,0.71890761]
[1768873676818,0.95663349,3193.6,3192.9,0.00080248]
[1768873679922,0.95663349,3193.6,3193.2,0.001]
[1768873680120,0.002,3193.3,3193.2,0.001]
[1768873680440,1.47535962,3193.3,3193.2,0.001]
[1768873680956,0.515,3193.3,3193.2,0.001]
[1768873681136,0.513,3193.4,3193.2,0.91706761]
[1768873684749,0.513,3193.5,3193.3,0.91606761]
[1768873689343,0.513,3193.5,3193.3,4.04761995]
[1768873689523,0.513,3193.5,3193.3,0.91606761]
[1768873691653,0.513,3193.5,3193.3,4.04761339]
[1768873691842,0.513,3193.5,3193.3,3.99461339]
[1768873692425,0.513,3193.5,3193.3,0.86306761]
[1768873694452,0.513,3193.5,3193.2,0.001]
[1768873694855,0.513,3193.5,3193.2,0.91706761]
[1768873695652,0.00280304,3193.6,3193.3,0.91606761]
[1768873695850,0.51380296,3193.9,3193.4,0.91606761]
[1768873696752,0.002,3194.4,3193.7,0.56695297]
[1768873696953,0.002,3194.4,3193.9,0.56695297]
[1768873697252,0.96035962,3194.8,3194.1,0.0008028]
[1768873697426,0.96035962,3194.8,3194.2,0.56495297]
[1768873697930,0.96035962,3194.8,3194.3,3.6955293]
[1768873698957,0.515,3194.9,3194.4,0.56495297]
[1768873698958,0.002,3194.9,3194.4,0.56495297]
[1768873699135,0.002,3194.9,3194.3,3.13057633]
[1768873699136,0.002,3194.9,3194.6,0.56495297]
[1768873700030,0.002,3194.9,3194.6,3.69523336]
[1768873700432,0.00080288,3195.1,3194.7,0.56295297]
[1768873701144,0.00080288,3195.1,3194.8,0.56295297]
[1768873701850,0.00080288,3195.1,3194.6,3.69323336]
[1768873702059,0.9611625,3195.1,3194.6,4.46385388]
[1768873702355,0.96035962,3194.9,3194.1,3.13150945]
[1768873703052,0.96035962,3194.9,3194.2,3.13065893]
[1768873704661,0.96035962,3194.9,3194.1,3.69449734]
[1768873704959,0.96035962,3194.9,3194.1,0.0008028]
[1768873705553,0.96035962,3194.9,3194.6,0.001]
[1768873705731,0.96035962,3194.9,3194.1,3.13156754]
[1768873706757,0.96035962,3194.9,3194.1,0.0008028]
[1768873707056,0.96035962,3194.9,3194.1,0.56375577]
[1768873709152,0.96035962,3194.9,3194.1,0.0008028]
[1768873709153,0.948775,3194.8,3194.1,0.0008028]
[1768873709459,0.948775,3194.6,3194.1,0.0008028]
[1768873716568,0.948775,3194.6,3194.1,0.56375577]
[1768873716967,0.00080248,3194.7,3194.1,0.56375577]
[1768873717145,0.94957748,3194.7,3194.1,0.0008028]
[1768873717552,0.94957748,3194.7,3194.1,0.56375577]
[1768873718063,0.94957748,3194.7,3194.4,0.001]
[1768873722575,0.00080248,3194.7,3194.4,0.001]
[1768873723073,0.91036103,3194.7,3194.4,0.001]
[1768873727272,0.90955855,3194.5,3194.1,0.0008028]
[1768873727472,0.90955855,3194.3,3194.1,0.0008028]
[1768873731977,0.90955855,3194.3,3193.8,0.00080312]
[1768873735372,0.96741683,3194.2,3193.8,0.00080312]
[1768873738194,0.513,3194.3,3193.8,0.00080312]
[1768873738195,0.002,3194.4,3193.8,0.56375609]
[1768873739984,0.002,3194.4,3194.0,0.56295297]
[1768873740182,0.002,3194.4,3194.1,0.56295297]
[1768873740585,0.96741683,3195.0,3194.1,0.56015017]
[1768873740776,0.96741683,3195.0,3194.1,0.56095305]
[1768873740975,0.96741683,3194.9,3194.1,0.56095305]
[1768873741655,0.96741683,3194.8,3194.1,0.56095305]
[1768873741857,0.96821971,3194.5,3193.8,0.00080312]
[1768873742055,0.96741683,3194.3,3193.8,0.00080312]
[1768873744794,8.03023504,3194.3,3193.8,0.00080312]
[1768873744997,8.03023504,3194.3,3193.5,0.00080304]
[1768873744998,0.96741683,3194.2,3193.5,0.00080304]
[1768873745185,0.96741683,3194.0,3193.5,0.00080304]
[1768873746379,0.96741683,3194.0,3193.5,0.56175633]
[1768873746578,0.96741683,3194.1,3193.5,0.56175633]
[1768873747663,0.51380312,3194.2,3193.5,0.56175633]
[1768873748069,1.48121995,3194.2,3193.5,0.56175633]
[1768873748471,0.00080312,3194.2,3193.7,0.56095329]
[1768873749598,0.00080312,3194.2,3193.8,0.57216957]
[1768873750872,0.96821995,3194.2,3193.8,0.56095329]
[1768873751064,0.96821995,3194.2,3193.5,0.00080304]
[1768873751270,0.96741683,3194.1,3193.5,0.00080304]
[1768873751506,7.0619527,3194.2,3193.5,0.00080304]
[1768873751507,0.96741683,3193.9,3193.5,0.00080304]
[1768873753708,0.96741683,3193.9,3193.8,0.001]
[1768873753891,0.96741683,3193.9,3193.5,0.00080304]
[1768873754413,0.96941683,3194.0,3193.5,0.56175633]
[1768873755310,0.00080312,3194.2,3193.6,0.55895329]
[1768873755609,0.002,3194.3,3193.8,0.55815017]
[1768873755814,0.002,3194.3,3193.8,0.55895337]
[1768873756313,1e-08,3194.4,3194.1,0.55815017]
[1768873758781,1e-08,3194.4,3194.3,0.55815017]